Workbook

Sheet 冷却時FANK
B3: 天井吊り隠蔽型－標準型
B5: 入口空気条件DBｉ= | D5: 27 | E5: ℃ WBi= | F5: 19.5 | G5: ℃ φi= | H5: 49.44456863 | I5: % DPi= | J5: 15.52334785 | K5: ℃ xi= | L5: 0.01101213135 | M5: kg/kg' Ii= | N5: 55.19268721 | O5: kJ/kg' γi= | P5: 1.155816674 | Q5: kg'/m3
B7: ユニットサイズ | C7: 風量 | D7: 水量 | E7: ｺｲﾙ圧損 | G7: 入口水温(℃)
G8: 7
F9: SH | G9: TH | H9: SHF | I9: Δtw | J9: ｔｗｏ | K9: DBｏ | L9: Xo | M9: Ｉｏ | N9: Δta | O9: WSF | P9: MTD | Q9: FA・N・K
C10: m3/h | D10: L/min | E10: kPa | F10: kW | G10: kW | H10: － | I10: ℃ | J10: ℃ | K10: ℃ | L10: kg/kg' | M10: kJ/kg' | N10: ℃ | O10: － | P10: ℃ | Q10: kW/℃
C11: 335 | D11: 2 | E11: 1.3 | F11: 1.23 | G11: 1.32 | H11: =F11/G11 -> 0.9318181818 | I11: =G11*860/(D11*60) -> 9.46 | J11: =G$8+I11 -> 16.46 | K11: 15.85175419 | L11: 0.01067729294 | M11: 42.92004912 | N11: =D$5-K11 -> 11.14824581 | O11: =1.04*H11^2-2.63*H11+2.59 -> 1.042334711 | P11: =(D$5-J11-K11+G$8)/LN((D$5-J11)/(K11-G$8)) -> 9.671330943 | Q11: =G11/(O11*P11) -> 0.1309424571
B12: 200 | C12: =C11 -> 335 | D12: 4 | E12: 4.4 | F12: 1.41 | G12: 1.8 | H12: =F12/G12 -> 0.7833333333 | I12: =G12*860/(D12*60) -> 6.45 | J12: =G$8+I12 -> 13.45 | K12: 14.24651623 | L12: 0.009561171755 | M12: 38.45727418 | N12: =D$5-K12 -> 12.75348377 | O12: =1.04*H12^2-2.63*H12+2.59 -> 1.167988889 | P12: =(D$5-J12-K12+G$8)/LN((D$5-J12)/(K12-G$8)) -> 10.0716234 | Q12: =G12/(O12*P12) -> 0.1530151089
C13: =C12 -> 335 | D13: 6 | E13: 8.8 | F13: 1.5 | G13: 2.03 | H13: =F13/G13 -> 0.7389162562 | I13: =G13*860/(D13*60) -> 4.849444444 | J13: =G$8+I13 -> 11.84944444 | K13: 13.44057178 | L13: 0.009040315636 | M13: 36.31886027 | N13: =D$5-K13 -> 13.55942822 | O13: =1.04*H13^2-2.63*H13+2.59 -> 1.214487369 | P13: =(D$5-J13-K13+G$8)/LN((D$5-J13)/(K13-G$8)) -> 10.18211522 | Q13: =G13/(O13*P13) -> 0.1641591249
C14: =C13 -> 335 | D14: 8 | E14: 14.4 | F14: 1.55 | G14: 2.16 | H14: =F14/G14 -> 0.7175925926 | I14: =G14*860/(D14*60) -> 3.87 | J14: =G$8+I14 -> 10.87 | K14: 12.99236488 | L14: 0.008742681704 | M14: 35.11018997 | N14: =D$5-K14 -> 14.00763512 | O14: =1.04*H14^2-2.63*H14+2.59 -> 1.238268176 | P14: =(D$5-J14-K14+G$8)/LN((D$5-J14)/(K14-G$8)) -> 10.23802145 | Q14: =G14/(O14*P14) -> 0.1703817226
C15: 480 | D15: 3 | E15: 3.1 | F15: 1.77 | G15: 1.91 | H15: =F15/G15 -> 0.9267015707 | I15: =G15*860/(D15*60) -> 9.125555556 | J15: =G$8+I15 -> 16.12555556 | K15: 15.80434799 | L15: 0.01064861566 | M15: 42.79898927 | N15: =D$5-K15 -> 11.19565201 | O15: =1.04*H15^2-2.63*H15+2.59 -> 1.045901702 | P15: =(D$5-J15-K15+G$8)/LN((D$5-J15)/(K15-G$8)) -> 9.802994776 | Q15: =G15/(O15*P15) -> 0.186287505
B16: 300 | C16: =C15 -> 480 | D16: 6 | E16: 10.3 | F16: 1.99 | G16: 2.5 | H16: =F16/G16 -> 0.796 | I16: =G16*860/(D16*60) -> 5.972222222 | J16: =G$8+I16 -> 12.97222222 | K16: 14.43554306 | L16: 0.009687898681 | M16: 38.97057192 | N16: =D$5-K16 -> 12.56445694 | O16: =1.04*H16^2-2.63*H16+2.59 -> 1.15548064 | P16: =(D$5-J16-K16+G$8)/LN((D$5-J16)/(K16-G$8)) -> 10.38526838 | Q16: =G16/(O16*P16) -> 0.2083337403
C17: =C16 -> 480 | D17: 9 | E17: 20.9 | F17: 2.09 | G17: 2.77 | H17: =F17/G17 -> 0.7545126354 | I17: =G17*860/(D17*60) -> 4.411481481 | J17: =G$8+I17 -> 11.41148148 | K17: 13.81190968 | L17: 0.009246488102 | M17: 37.21858344 | N17: =D$5-K17 -> 13.18809032 | O17: =1.04*H17^2-2.63*H17+2.59 -> 1.197692659 | P17: =(D$5-J17-K17+G$8)/LN((D$5-J17)/(K17-G$8)) -> 10.60153416 | Q17: =G17/(O17*P17) -> 0.2181552477
C18: =C17 -> 480 | D18: 12 | E18: 34.3 | F18: 2.15 | G18: 2.92 | H18: =F18/G18 -> 0.7363013699 | I18: =G18*860/(D18*60) -> 3.487777778 | J18: =G$8+I18 -> 10.48777778 | K18: 13.43649673 | L18: 0.00901279971 | M18: 36.24525428 | N18: =D$5-K18 -> 13.56350327 | O18: =1.04*H18^2-2.63*H18+2.59 -> 1.217352693 | P18: =(D$5-J18-K18+G$8)/LN((D$5-J18)/(K18-G$8)) -> 10.69477726 | Q18: =G18/(O18*P18) -> 0.2242821376
C19: 725 | D19: 4 | E19: 2.2 | F19: 2.62 | G19: 2.72 | H19: =F19/G19 -> 0.9632352941 | I19: =G19*860/(D19*60) -> 9.746666667 | J19: =G$8+I19 -> 16.74666667 | K19: 16.02296257 | L19: 0.01084022131 | M19: 43.50739198 | N19: =D$5-K19 -> 10.97703743 | O19: =1.04*H19^2-2.63*H19+2.59 -> 1.021626298 | P19: =(D$5-J19-K19+G$8)/LN((D$5-J19)/(K19-G$8)) -> 9.625044982 | Q19: =G19/(O19*P19) -> 0.2766139464
B20: 400 | C20: =C19 -> 725 | D20: 8 | E20: 7.3 | F20: 2.95 | G20: 3.62 | H20: =F20/G20 -> 0.8149171271 | I20: =G20*860/(D20*60) -> 6.485833333 | J20: =G$8+I20 -> 13.48583333 | K20: 14.6651392 | L20: 0.009860345162 | M20: 39.64093808 | N20: =D$5-K20 -> 12.3348608 | O20: =1.04*H20^2-2.63*H20+2.59 -> 1.137421477 | P20: =(D$5-J20-K20+G$8)/LN((D$5-J20)/(K20-G$8)) -> 10.31472917 | Q20: =G20/(O20*P20) -> 0.3085526758
C21: =C20 -> 725 | D21: 13 | E21: 17 | F21: 3.15 | G21: 4.13 | H21: =F21/G21 -> 0.7627118644 | I21: =G21*860/(D21*60) -> 4.553589744 | J21: =G$8+I21 -> 11.55358974 | K21: 13.83836079 | L21: 0.009327428415 | M21: 37.44994447 | N21: =D$5-K21 -> 13.16163921 | O21: =1.04*H21^2-2.63*H21+2.59 -> 1.18906636 | P21: =(D$5-J21-K21+G$8)/LN((D$5-J21)/(K21-G$8)) -> 10.5642459 | Q21: =G21/(O21*P21) -> 0.3287800502
C22: =C21 -> 725 | D22: 18 | E22: 29.8 | F22: 3.25 | G22: 4.4 | H22: =F22/G22 -> 0.7386363636 | I22: =G22*860/(D22*60) -> 3.503703704 | J22: =G$8+I22 -> 10.5037037 | K22: 13.42500019 | L22: 0.009035183117 | M22: 36.29000551 | N22: =D$5-K22 -> 13.57499981 | O22: =1.04*H22^2-2.63*H22+2.59 -> 1.214793388 | P22: =(D$5-J22-K22+G$8)/LN((D$5-J22)/(K22-G$8)) -> 10.68074782 | Q22: =G22/(O22*P22) -> 0.3391162459
C23: 860 | D23: 6 | E23: 5.6 | F23: 3.34 | G23: 3.87 | H23: =F23/G23 -> 0.8630490956 | I23: =G23*860/(D23*60) -> 9.245 | J23: =G$8+I23 -> 16.245 | K23: 15.21873283 | L23: 0.01024403982 | M23: 41.17677934 | N23: =D$5-K23 -> 11.78126717 | O23: =1.04*H23^2-2.63*H23+2.59 -> 1.09482877 | P23: =(D$5-J23-K23+G$8)/LN((D$5-J23)/(K23-G$8)) -> 9.430089746 | Q23: =G23/(O23*P23) -> 0.3748425968
B24: 600 | C24: =C23 -> 860 | D24: 10 | E24: 13.5 | F24: 3.64 | G24: 4.68 | H24: =F24/G24 -> 0.7777777778 | I24: =G24*860/(D24*60) -> 6.708 | J24: =G$8+I24 -> 13.708 | K24: 14.17603779 | L24: 0.009504934773 | M24: 38.24321881 | N24: =D$5-K24 -> 12.82396221 | O24: =1.04*H24^2-2.63*H24+2.59 -> 1.173580247 | P24: =(D$5-J24-K24+G$8)/LN((D$5-J24)/(K24-G$8)) -> 9.921826384 | Q24: =G24/(O24*P24) -> 0.4019216852
C25: =C24 -> 860 | D25: 15 | E25: 27.2 | F25: 3.84 | G25: 5.18 | H25: =F25/G25 -> 0.7413127413 | I25: =G25*860/(D25*60) -> 4.949777778 | J25: =G$8+I25 -> 11.94977778 | K25: 13.47795486 | L25: 0.009070164524 | M25: 36.43237508 | N25: =D$5-K25 -> 13.52204514 | O25: =1.04*H25^2-2.63*H25+2.59 -> 1.211873854 | P25: =(D$5-J25-K25+G$8)/LN((D$5-J25)/(K25-G$8)) -> 10.16890909 | Q25: =G25/(O25*P25) -> 0.4203373473
C26: =C25 -> 860 | D26: 20 | E26: 44.7 | F26: 3.95 | G26: 5.46 | H26: =F26/G26 -> 0.7234432234 | I26: =G26*860/(D26*60) -> 3.913 | J26: =G$8+I26 -> 10.913 | K26: 13.09371376 | L26: 0.008823797107 | M26: 35.41830674 | N26: =D$5-K26 -> 13.90628624 | O26: =1.04*H26^2-2.63*H26+2.59 -> 1.231649224 | P26: =(D$5-J26-K26+G$8)/LN((D$5-J26)/(K26-G$8)) -> 10.29435724 | Q26: =G26/(O26*P26) -> 0.4306320706
C27: 1360 | D27: 8 | E27: 5.4 | F27: 5.03 | G27: 5.44 | H27: =F27/G27 -> 0.9246323529 | I27: =G27*860/(D27*60) -> 9.746666667 | J27: =G$8+I27 -> 16.74666667 | K27: 15.77115536 | L27: 0.01063639671 | M27: 42.734102 | N27: =D$5-K27 -> 11.22884464 | O27: =1.04*H27^2-2.63*H27+2.59 -> 1.047359699 | P27: =(D$5-J27-K27+G$8)/LN((D$5-J27)/(K27-G$8)) -> 9.492967272 | Q27: =G27/(O27*P27) -> 0.5471432643
B28: 800 | C28: =C27 -> 1360 | D28: 14 | E28: 14.1 | F28: 5.52 | G28: 6.75 | H28: =F28/G28 -> 0.8177777778 | I28: =G28*860/(D28*60) -> 6.910714286 | J28: =G$8+I28 -> 13.91071429 | K28: 14.69537354 | L28: 0.009884930216 | M28: 39.73396553 | N28: =D$5-K28 -> 12.30462646 | O28: =1.04*H28^2-2.63*H28+2.59 -> 1.134755358 | P28: =(D$5-J28-K28+G$8)/LN((D$5-J28)/(K28-G$8)) -> 10.15468574 | Q28: =G28/(O28*P28) -> 0.5857806787
C29: =C28 -> 1360 | D29: 20 | E29: 26.2 | F29: 5.78 | G29: 7.45 | H29: =F29/G29 -> 0.7758389262 | I29: =G29*860/(D29*60) -> 5.339166667 | J29: =G$8+I29 -> 12.33916667 | K29: 14.1234808 | L29: 0.009481702931 | M29: 38.13083775 | N29: =D$5-K29 -> 12.8765192 | O29: =1.04*H29^2-2.63*H29+2.59 -> 1.175546705 | P29: =(D$5-J29-K29+G$8)/LN((D$5-J29)/(K29-G$8)) -> 10.44268422 | Q29: =G29/(O29*P29) -> 0.6068819753
C30: =C29 -> 1360 | D30: 26 | E30: 41.2 | F30: 5.94 | G30: 7.86 | H30: =F30/G30 -> 0.7557251908 | I30: =G30*860/(D30*60) -> 4.333076923 | J30: =G$8+I30 -> 11.33307692 | K30: 13.77066135 | L30: 0.009252597578 | M30: 37.19186444 | N30: =D$5-K30 -> 13.22933865 | O30: =1.04*H30^2-2.63*H30+2.59 -> 1.196408135 | P30: =(D$5-J30-K30+G$8)/LN((D$5-J30)/(K30-G$8)) -> 10.60400606 | Q30: =G30/(O30*P30) -> 0.6195455211
C31: 1690 | D31: 12 | E31: 12.1 | F31: 6.51 | G31: 7.45 | H31: =F31/G31 -> 0.8738255034 | I31: =G31*860/(D31*60) -> 8.898611111 | J31: =G$8+I31 -> 15.89861111 | K31: 15.31298447 | L31: 0.01031890139 | M31: 41.46244066 | N31: =D$5-K31 -> 11.68701553 | O31: =1.04*H31^2-2.63*H31+2.59 -> 1.085952777 | P31: =(D$5-J31-K31+G$8)/LN((D$5-J31)/(K31-G$8)) -> 9.640067693 | Q31: =G31/(O31*P31) -> 0.711648026
B32: 1200 | C32: =C31 -> 1690 | D32: 18 | E32: 24.4 | F32: 6.93 | G32: 8.58 | H32: =F32/G32 -> 0.8076923077 | I32: =G32*860/(D32*60) -> 6.832222222 | J32: =G$8+I32 -> 13.83222222 | K32: 14.57053852 | L32: 0.009795293212 | M32: 39.37986798 | N32: =D$5-K32 -> 12.42946148 | O32: =1.04*H32^2-2.63*H32+2.59 -> 1.144230769 | P32: =(D$5-J32-K32+G$8)/LN((D$5-J32)/(K32-G$8)) -> 10.11229025 | Q32: =G32/(O32*P32) -> 0.7415221684
C33: =C32 -> 1690 | D33: 24 | E33: 40.2 | F33: 7.18 | G33: 9.25 | H33: =F33/G33 -> 0.7762162162 | I33: =G33*860/(D33*60) -> 5.524305556 | J33: =G$8+I33 -> 12.52430556 | K33: 14.12789059 | L33: 0.009485554881 | M33: 38.14506951 | N33: =D$5-K33 -> 12.87210941 | O33: =1.04*H33^2-2.63*H33+2.59 -> 1.17516343 | P33: =(D$5-J33-K33+G$8)/LN((D$5-J33)/(K33-G$8)) -> 10.37157905 | Q33: =G33/(O33*P33) -> 0.7589245164
C34: =C33 -> 1690 | D34: 30 | E34: 59.1 | F34: 7.35 | G34: 9.69 | H34: =F34/G34 -> 0.7585139319 | I34: =G34*860/(D34*60) -> 4.629666667 | J34: =G$8+I34 -> 11.62966667 | K34: 13.82632256 | L34: 0.00928643439 | M34: 37.33415417 | N34: =D$5-K34 -> 13.17367744 | O34: =1.04*H34^2-2.63*H34+2.59 -> 1.193465479 | P34: =(D$5-J34-K34+G$8)/LN((D$5-J34)/(K34-G$8)) -> 10.5266774 | Q34: =G34/(O34*P34) -> 0.771298704
B36: ☆ FA･N･Kの計算式（冷却時）
B38: 入口水温 | D38: =G8 -> 7 | E38: ℃
B39: 入口空気条件 | D39: =D5 -> 27 | E39: ℃DB | F39: =F5 -> 19.5 | G39: ℃WB
B41: ユニットサイズ | C41: 水量 | D41: FA・N・K | G41: FA・N・K=aL2+bL+c | K41: FA・N・K | L41: 誤差
C42: L | E42: a | G42: b | I42: c | K42: 計算値
C43: L/min | D43: kW/℃ | K43: kW/℃ | L43: ％
C44: =D11 -> 2 | D44: =Q11 -> 0.1309424571 | E44: -0.001178353854 | G44: 0.018106449 | I44: 0.09944297453 | K44: 0.1309424639 | L44: =(D44-K44)/D44*100 -> -5.160959405e-06
B45: 200 | C45: =D12 -> 4 | D45: =Q12 -> 0.1530151089 | K45: 0.1530151069 | L45: =(D45-K45)/D45*100 -> 1.278505867e-06
C46: =D13 -> 6 | D46: =Q13 -> 0.1641591249 | K46: 0.1656609327 | L46: =(D46-K46)/D46*100 -> -0.9148488117
C47: =D14 -> 8 | D47: =Q14 -> 0.1703817226 | K47: 0.1688799262 | L47: =(D47-K47)/D47*100 -> 0.8814304449
C48: =D15 -> 3 | D48: =Q15 -> 0.186287505 | E48: -0.0005606778899 | G48: 0.01239484609 | I48: 0.1541490678 | K48: 0.1862875074 | L48: =(D48-K48)/D48*100 -> -1.27076042e-06
B49: 300 | C49: =D16 -> 6 | D49: =Q16 -> 0.2083337403 | K49: 0.2083337456 | L49: =(D49-K49)/D49*100 -> -2.543173686e-06
C50: =D17 -> 9 | D50: =Q17 -> 0.2181552477 | K50: 0.22028777 | L50: =(D50-K50)/D50*100 -> -0.9775251186
C51: =D18 -> 12 | D51: =Q18 -> 0.2242821376 | K51: 0.2221496105 | L51: =(D51-K51)/D51*100 -> 0.9508234177
C52: =D19 -> 4 | D52: =Q19 -> 0.2766139464 | E52: -0.0003728610342 | G52: 0.01245901477 | I52: 0.2327436638 | K52: 0.2766139507 | L52: =(D52-K52)/D52*100 -> -1.570994542e-06
B53: 400 | C53: =D20 -> 8 | D53: =Q20 -> 0.3085526758 | K53: 0.3085526824 | L53: =(D53-K53)/D53*100 -> -2.130703632e-06
C54: =D21 -> 13 | D54: =Q21 -> 0.3287800502 | K54: 0.3316973448 | L54: =(D54-K54)/D54*100 -> -0.8873088725
C55: =D22 -> 18 | D55: =Q22 -> 0.3391162459 | K55: 0.3361989558 | L55: =(D55-K55)/D55*100 -> 0.8602625593
C56: =D23 -> 6 | D56: =Q23 -> 0.3748425968 | E56: -0.0002941649737 | G56: 0.01147641168 | I56: 0.3165740658 | K56: 0.3748425841 | L56: =(D56-K56)/D56*100 -> 3.384536819e-06
B57: 600 | C57: =D24 -> 10 | D57: =Q24 -> 0.4019216852 | K57: 0.4019216895 | L57: =(D57-K57)/D57*100 -> -1.065306097e-06
C58: =D25 -> 15 | D58: =Q25 -> 0.4203373473 | K58: 0.4225331247 | L58: =(D58-K58)/D58*100 -> -0.5223845668
C59: =D26 -> 20 | D59: =Q26 -> 0.4306320706 | K59: 0.4284363091 | L59: =(D59-K59)/D59*100 -> 0.5098926938
C60: =D27 -> 8 | D60: =Q27 -> 0.5471432643 | E60: -0.0002119656456 | G60: 0.01110281327 | I60: 0.4718865594 | K60: 0.5471432805 | L60: =(D60-K60)/D60*100 -> -2.968151597e-06
B61: 800 | C61: =D28 -> 14 | D61: =Q28 -> 0.5857806787 | K61: 0.5857806802 | L61: =(D61-K61)/D61*100 -> -2.568833022e-07
C62: =D29 -> 20 | D62: =Q29 -> 0.6068819753 | K62: 0.609156549 | L62: =(D62-K62)/D62*100 -> -0.3747967105
C63: =D30 -> 26 | D63: =Q30 -> 0.6195455211 | K63: 0.6172709465 | L63: =(D63-K63)/D63*100 -> 0.3671359849
C64: =D31 -> 12 | D64: =Q31 -> 0.711648026 | E64: -0.0001473734075 | G64: 0.009400225968 | I64: 0.6200670851 | K64: 0.711648047 | L64: =(D64-K64)/D64*100 -> -2.947389213e-06
B65: 1200 | C65: =D32 -> 18 | D65: =Q32 -> 0.7415221684 | K65: 0.741522193 | L65: =(D65-K65)/D65*100 -> -3.304963403e-06
C66: =D33 -> 24 | D66: =Q33 -> 0.7589245164 | K66: 0.7607854009 | L66: =(D66-K66)/D66*100 -> -0.2452002103
C67: =D34 -> 30 | D67: =Q34 -> 0.771298704 | K67: 0.7694377899 | L67: =(D67-K67)/D67*100 -> 0.2412702205

Sheet 加熱時FANK
B3: 天井吊り隠蔽型－標準型
B5: 入口空気条件DBｉ= | D5: 22 | E5: ℃ WBi= | F5: 15.6 | G5: ℃ φi= | H5: 50.77228928 | I5: % DPi= | J5: 11.34098339 | K5: ℃ xi= | L5: 0.008348448202 | M5: kg/kg' Ii= | N5: 43.30348448 | O5: kJ/kg' γi= | P5: 1.180363297 | Q5: kg'/m3
B7: ユニットサイズ | C7: 風量 | D7: 水量 | E7: 水圧損失 | G7: 入口水温(℃)
G8: 50
F9: SH | G9: TH | H9: SHF | I9: Δtw | J9: ｔｗｏ | K9: DBｏ | L9: Xo | M9: Ｉｏ | N9: Δta | O9: WSF | P9: MTD | Q9: FA・N・K
C10: m3/h | D10: L/min | E10: kPa | F10: kW | G10: kW | H10: － | I10: ℃ | J10: ℃ | K10: ℃ | L10: kg/kg' | M10: kJ/kg' | N10: ℃ | O10: － | P10: ℃ | Q10: kW/℃
C11: 335 | D11: 2 | E11: 1.3 | F11: =G11 -> 1.82 | G11: 1.82 | H11: =F11/G11 -> 1 | I11: =G11*860/($D11*60) -> 13.04333333 | J11: =G$8-I11 -> 36.95666667 | K11: =$D$5+G11*860/($C11*$P$5*(0.24+0.44*$L$5)) -> 38.2443134 | L11: =$L$5 -> 0.008348448202 | M11: =(0.24*K11+L11*(597+0.44*L11))*4.186 -> 59.28501808 | N11: =K11-P$5 -> 37.0639501 | O11: 1 | P11: =($G$8-K11-J11+$D$5)/LN((G$8-K11)/(J11-$D$5)) -> 13.29200029 | Q11: =G11/(O11*P11) -> 0.1369244628
B12: 200 | C12: =C11 -> 335 | D12: 4 | E12: 4.4 | F12: 2.15 | G12: 2.15 | H12: 1 | I12: 7.704166667 | J12: 42.29583333 | K12: 41.18971088 | L12: 0.008348448202 | M12: 62.2440822 | N12: 40.00934759 | O12: 1 | P12: 13.76346095 | Q12: 0.1562107095
C13: =C12 -> 335 | D13: 6 | E13: 8.8 | F13: 2.27 | G13: 2.27 | H13: 1 | I13: 5.422777778 | J13: 44.57722222 | K13: 42.26076451 | L13: 0.008348448202 | M13: 63.32010552 | N13: 41.08040122 | O13: 1 | P13: 13.85900565 | Q13: 0.1637924146
C14: =C13 -> 335 | D14: 8 | E14: 14.4 | F14: 2.33 | G14: 2.33 | H14: 1 | I14: 4.174583333 | J14: 45.82541667 | K14: 42.79629133 | L14: 0.008348448202 | M14: 63.85811718 | N14: 41.61592803 | O14: 1 | P14: 13.89592559 | Q14: 0.1676750487
C15: 480 | D15: 3 | E15: 3.1 | F15: 2.67 | G15: 2.67 | H15: 1 | I15: 12.75666667 | J15: 37.24333333 | K15: 38.6320125 | L15: 0.008348448202 | M15: 59.6745161 | N15: 37.4516492 | O15: 1 | P15: 13.21106286 | Q15: 0.2021033453
B16: 300 | C16: =C15 -> 480 | D16: 6 | E16: 10.3 | F16: 3.09 | G16: 3.09 | H16: 1 | I16: 7.381666667 | J16: 42.61833333 | K16: 41.24828413 | L16: 0.008348448202 | M16: 62.30292723 | N16: 40.06792083 | O16: 1 | P16: 13.84781191 | Q16: 0.2231399459
C17: =C16 -> 480 | D17: 9 | E17: 20.9 | F17: 3.24 | G17: 3.24 | H17: 1 | I17: 5.16 | J17: 44.84 | K17: 42.18266685 | L17: 0.008348448202 | M17: 63.24164549 | N17: 41.00230356 | O17: 1 | P17: 14.01146087 | Q17: 0.2312392712
C18: =C17 -> 480 | D18: 12 | E18: 34.3 | F18: 3.32 | G18: 3.32 | H18: 1 | I18: 3.965555556 | J18: 46.03444444 | K18: 42.68100431 | L18: 0.008348448202 | M18: 63.74229523 | N18: 41.50064101 | O18: 1 | P18: 14.05823358 | Q18: 0.2361605376
C19: 725 | D19: 4 | E19: 2.2 | F19: 3.87 | G19: 3.87 | H19: 1 | I19: 13.8675 | J19: 36.1325 | K19: 37.96054574 | L19: 0.008348448202 | M19: 58.99993374 | N19: 36.78018244 | O19: 1 | P19: 13.05803158 | Q19: 0.2963693245
B20: 400 | C20: =C19 -> 725 | D20: 8 | E20: 7.3 | F20: 4.56 | G20: 4.56 | H20: 1 | I20: 8.17 | J20: 41.83 | K20: 40.80622444 | L20: 0.008348448202 | M20: 61.85881638 | N20: 39.62586114 | O20: 1 | P20: 13.83719245 | Q20: 0.3295466198
C21: =C20 -> 725 | D21: 13 | E21: 17 | F21: 4.86 | G21: 4.86 | H21: 1 | I21: 5.358461538 | J21: 44.64153846 | K21: 42.04347605 | L21: 0.008348448202 | M21: 63.10180884 | N21: 40.86311275 | O21: 1 | P21: 14.04197639 | Q21: 0.3461051254
C22: =C21 -> 725 | D22: 18 | E22: 29.8 | F22: 5 | G22: 5 | H22: 1 | I22: 3.981481481 | J22: 46.01851852 | K22: 42.62086013 | L22: 0.008348448202 | M22: 63.68187198 | N22: 41.44049683 | O22: 1 | P22: 14.09916035 | Q22: 0.3546310472
C23: 860 | D23: 6 | E23: 5.6 | F23: 5.13 | G23: 5.13 | H23: 1 | I23: 12.255 | J23: 37.745 | K23: 39.83584513 | L23: 0.008348448202 | M23: 60.88393451 | N23: 38.65548183 | O23: 1 | P23: 12.75168361 | Q23: 0.4022998183
B24: 600 | C24: =C23 -> 860 | D24: 10 | E24: 13.5 | F24: 5.67 | G24: 5.67 | H24: 1 | I24: 8.127 | J24: 41.873 | K24: 41.71330251 | L24: 0.008348448202 | M24: 62.77010329 | N24: 40.53293921 | O24: 1 | P24: 13.24587093 | Q24: 0.4280579231
C25: =C24 -> 860 | D25: 15 | E25: 27.2 | F25: 5.95 | G25: 5.95 | H25: 1 | I25: 5.685555556 | J25: 44.31444444 | K25: 42.68679893 | L25: 0.008348448202 | M25: 63.74811674 | N25: 41.50643563 | O25: 1 | P25: 13.44735907 | Q25: 0.4424660612
C26: =C25 -> 860 | D26: 20 | E26: 44.7 | F26: 6.09 | G26: 6.09 | H26: 1 | I26: 4.3645 | J26: 45.6355 | K26: 43.17354714 | L26: 0.008348448202 | M26: 64.23712346 | N26: 41.99318384 | O26: 1 | P26: 13.53445779 | Q26: 0.4499626134
C27: 1360 | D27: 8 | E27: 5.4 | F27: 7.54 | G27: 7.54 | H27: 1 | I27: 13.50916667 | J27: 36.49083333 | K27: 38.57704881 | L27: 0.008348448202 | M27: 59.61929738 | N27: 37.39668551 | O27: 1 | P27: 12.89613091 | Q27: 0.584671484
B28: 800 | C28: =C27 -> 1360 | D28: 14 | E28: 14.1 | F28: 8.54 | G28: 8.54 | H28: 1 | I28: 8.743333333 | J28: 41.25666667 | K28: 40.7755964 | L28: 0.008348448202 | M28: 61.82804623 | N28: 39.5952331 | O28: 1 | P28: 13.63070362 | Q28: 0.6265267179
C29: =C28 -> 1360 | D29: 20 | E29: 26.2 | F29: 8.97 | G29: 8.97 | H29: 1 | I29: 6.4285 | J29: 43.5715 | K29: 41.72097186 | L29: 0.008348448202 | M29: 62.77780823 | N29: 40.54060856 | O29: 1 | P29: 13.88034019 | Q29: 0.6462377634
C30: =C29 -> 1360 | D30: 26 | E30: 41.2 | F30: 9.21 | G30: 9.21 | H30: 1 | I30: 5.077307692 | J30: 44.92269231 | K30: 42.24862328 | L30: 0.008348448202 | M30: 63.30790796 | N30: 41.06825998 | O30: 1 | P30: 13.99236274 | Q30: 0.6582162122
C31: 1690 | D31: 12 | E31: 12.1 | F31: 9.76 | G31: 9.76 | H31: 1 | I31: 11.65777778 | J31: 38.34222222 | K31: 39.26783506 | L31: 0.008348448202 | M31: 60.31328888 | N31: 38.08747177 | O31: 1 | P31: 13.34118159 | Q31: 0.7315693841
B32: 1200 | C32: =C31 -> 1690 | D32: 18 | E32: 24.4 | F32: 10.55 | G32: 10.55 | H32: 1 | I32: 8.400925926 | J32: 41.59907407 | K32: 40.66553893 | L32: 0.008348448202 | M32: 61.71747809 | N32: 39.48517563 | O32: 1 | P32: 13.83801307 | Q32: 0.7623926892
C33: =C32 -> 1690 | D33: 24 | E33: 40.2 | F33: 10.96 | G33: 10.96 | H33: 1 | I33: 6.545555556 | J33: 43.45444444 | K33: 41.39092954 | L33: 0.008348448202 | M33: 62.44623451 | N33: 40.21056624 | O33: 1 | P33: 14.0676337 | Q33: 0.7790933596
C34: =C33 -> 1690 | D34: 30 | E34: 59.1 | F34: 11.21 | G34: 11.21 | H34: 1 | I34: 5.355888889 | J34: 44.64411111 | K34: 41.83324089 | L34: 0.008348448202 | M34: 62.89059819 | N34: 40.65287759 | O34: 1 | P34: 14.1958807 | Q34: 0.7896656951
B36: ☆ FA･N･Kの計算式（加熱時）
B38: 入口水温 | D38: =G8 -> 50 | E38: ℃
B39: 入口空気条件 | D39: =D5 -> 22 | E39: ℃DB | F39: =F5 -> 15.6 | G39: ℃WB
B41: ユニットサイズ | C41: 水量 | D41: FA・N・K | G41: FA・N・K=aL2+bL+c | K41: FA・N・K | L41: 誤差
C42: L | E42: a | G42: b | I42: c | L42: ％
C43: L/min | D43: kW/℃
C44: =D11 -> 2 | D44: =Q11 -> 0.1369244628 | E44: -0.001212896766 | G44: 0.01692050395 | I44: 0.107935042 | K44: 0.1369244605 | L44: =(D44-K44)/D44*100 -> 1.677539037e-06
B45: 200 | C45: 4 | D45: 0.1562107095 | K45: 0.1562107056 | L45: 2.497970914e-06
C46: 6 | D46: 0.1637924146 | K46: 0.1657937765 | L46: -1.221889253
C47: 8 | D47: 0.1676750487 | K47: 0.1656736732 | L47: 1.193603653
C48: 3 | D48: 0.2021033453 | E48: -0.000583192927 | G48: 0.01226093654 | I48: 0.1705692721 | K48: 0.2021033466 | L48: -6.134541115e-07
B49: 300 | C49: 6 | D49: 0.2231399459 | K49: 0.2231399417 | L49: 1.900336645e-06
C50: 9 | D50: 0.2312392712 | K50: 0.2336790711 | L50: -1.055097527
C51: 12 | D51: 0.2361605376 | K51: 0.2337207347 | L51: 1.033112015
C52: 4 | D52: 0.2963693245 | E52: -0.0004474158663 | G52: 0.01366331423 | I52: 0.2488747215 | K52: 0.2963693142 | L52: 3.482692474e-06
B53: 400 | C53: 8 | D53: 0.3295466198 | K53: 0.3295466304 | L53: -3.199450283e-06
C54: 13 | D54: 0.3461051254 | K54: 0.350884527 | L54: -1.380910381
C55: 18 | D55: 0.3546310472 | K55: 0.3498516381 | L55: 1.3477131
C56: 6 | D56: 0.4022998183 | E56: -0.0003258381717 | G56: 0.01165293693 | I56: 0.3441123709 | K56: 0.4022998214 | L56: -7.563100138e-07
B57: 600 | C57: 10 | D57: 0.4280579231 | K57: 0.428057909 | L57: 3.285637741e-06
C58: 15 | D58: 0.4424660612 | K58: 0.4455928504 | L58: -0.7066732377
C59: 20 | D59: 0.4499626134 | K59: 0.4468358457 | L59: 0.694895005
C60: 8 | D60: 0.584671484 | E60: -0.0002575178331 | G60: 0.01264126464 | I60: 0.5000225082 | K60: 0.5846714973 | L60: -2.277700124e-06
B61: 800 | C61: 14 | D61: 0.6265267179 | K61: 0.6265267134 | L61: 7.21136205e-07
C62: 20 | D62: 0.6462377634 | K62: 0.6498406529 | L62: -0.5575176403
C63: 26 | D63: 0.6582162122 | K63: 0.6546133161 | L63: 0.5473727368
C64: 12 | D64: 0.7315693841 | E64: -0.0001683897056 | G64: 0.01018890869 | I64: 0.6335505974 | K64: 0.7315694094 | L64: -3.453838157e-06
B65: 1200 | C65: 18 | D65: 0.7623926892 | K65: 0.7623926997 | L65: -1.376111292e-06
C66: 24 | D66: 0.7790933596 | K66: 0.7810919285 | L66: -0.2565249524
C67: 30 | D67: 0.7896656951 | K67: 0.7876670957 | L67: 0.2530943762

Sheet ＦＣＵ能力表
B1: ＦＣＵ能力表
B3: ☆データ入力方法： | D3: 水色：必須 | E3: 橙色：どれか一つ入力 | G3: 👈 データ入力後、計算実行ボタンを押してください
C4: （ | D4: 黄色：セルに計算式 | F4: 白色：内部計算）
B5: 計算内容：
B6: 1 | C6: １：冷却能力 ２：加熱能力
B8: 入口温度
B9: twi ℃
B10: 7
B12: 空気状態 | C12: 乾球温度 | D12: 湿球温度 | E12: 相対湿度 | F12: 露点温度 | G12: 絶対湿度 | H12: エンタルピ | I12: 比重
C13: DB ℃ | D13: WB ℃ | E13: RH ％ | F13: DP ℃ | G13: x kg/kg(DA) | H13: i kJ/kg(DA) | I13: γ kg(DA)/m3
B14: 入口 i | C14: 26 | D14: 18.70000076 | E14: 49.56380463 | F14: 14.64506054 | G14: 0.01039682701 | H14: 52.60062922 | I14: 1.160808563
D15: (橙色セルに複数の入力がある場合は、WB→RH→DPの最初の入力値で他の状態値を算出します）
B17: 天井吊り隠蔽型－標準型
B19: ユニット サイズ | C19: 風量 | D19: 水量 | E19: 水圧損失 | G19: 能力 | K19: 水・空気出口状態 | O19: 濡れ面係数 | P19: 対数平均 温度差 | Q19: 伝熱係数
F20: 顕熱 | G20: 全熱 | H20: 顕熱比 | I20: 水側 | L20: 空気側
C21: QA | D21: Lw | E21: ΔP | F21: SH | G21: TH | H21: SHF | I21: 出入口温度差 | J21: 出口温度 | K21: 乾球温度 | L21: 絶対湿度 | M21: エンタルピ | N21: 出入口温度差 | O21: WSF | P21: MTD | Q21: FA・N・K
C22: m3/h | D22: L/min | E22: kPa | F22: kW | G22: kW | H22: － | I22: ℃ | J22: ℃ | K22: ℃ | L22: kg/kg' | M22: kJ/kg' | N22: ℃ | O22: － | P22: ℃ | Q22: kW/℃
C23: 335 | D23: 2 | E23: 1.299999952 | F23: 1.187498689 | G23: 1.226509213 | H23: =F23/G23 -> 0.9681938592 | I23: =G23*860/(D23*60) -> 8.789982696 | J23: =IF($B$6=1,$B$10+I23,$B$10-I23) -> 15.7899827 | K23: 15.26547337 | L23: 0.01027809829 | M23: 41.3106897 | N23: =IF($B$6=1,$C$14-K23,K23-$C$14) -> 10.73452663 | O23: =1.04*H23^2-2.63*H23+2.59 -> 1.018545473 | P23: =IF($B$6=1,($C$14-J23-K23+$B$10)/LN(($C$14-J23)/(K23-$B$10)),($B$10-K23-J23+$C$14)/LN(($B$10-K23)/(J23-$C$14))) -> 9.203533467 | Q23: =G23/(O23*P23) -> 0.1308385722
B24: 200 | C24: 335 | D24: 4 | E24: 4.400000095 | F24: 1.358400464 | G24: 1.655659437 | H24: 0.8204588658 | I24: 5.93277965 | J24: 12.93277965 | K24: 13.74395847 | L24: 0.009300790727 | M24: 37.28623723 | N24: 12.25604153 | O24: 1.132272043 | P24: 9.559556278 | Q24: 0.1529616255
C25: 335 | D25: 6 | E25: 8.800000191 | F25: 1.448134899 | G25: 1.874816895 | H25: 0.7724140439 | I25: 4.478729248 | J25: 11.47872925 | K25: 12.94216061 | L25: 0.008820010349 | M25: 35.25403262 | N25: 13.05783939 | O25: 1.179039458 | P25: 9.601241867 | Q25: 0.1656163117
C26: 335 | D26: 8 | E26: 14.39999962 | F26: 1.485118747 | G26: 1.963480115 | H26: 0.7563706581 | I26: 3.517901873 | J26: 10.51790187 | K26: 12.6111536 | L26: 0.008628105745 | M26: 34.43207918 | N26: 13.3888464 | O26: 1.195725604 | P26: 9.725757778 | Q26: 0.1688385171
C27: 480 | D27: 3 | E27: 3.099999905 | F27: 1.708574414 | G27: 1.773540974 | H27: 0.9633690113 | I27: 8.473584652 | J27: 15.47358465 | K27: 15.22156525 | L27: 0.01024864614 | M27: 41.1913185 | N27: 10.77843475 | O27: 1.021542546 | P27: 9.326572605 | Q27: 0.1861498504
B28: 300 | C28: 480 | D28: 6 | E28: 10.30000019 | F28: 1.916851997 | G28: 2.298760414 | H28: 0.8338633229 | I28: 5.491483212 | J28: 12.49148321 | K28: 13.9277277 | L28: 0.00941423513 | M28: 37.76042056 | N28: 12.0722723 | O28: 1.120080624 | P28: 9.854600898 | Q28: 0.2082597702
C29: 480 | D29: 9 | E29: 20.89999962 | F29: 2.020107985 | G29: 2.553128719 | H29: 0.7912284129 | I29: 4.066093886 | J29: 11.06609389 | K29: 13.28432465 | L29: 0.00902239792 | M29: 36.11407052 | N29: 12.71567535 | O29: 1.160153372 | P29: 9.992863968 | Q29: 0.2202253602
C30: 480 | D30: 12 | E30: 34.29999924 | F30: 2.059651852 | G30: 2.649129629 | H30: 0.7774824716 | I30: 3.164238168 | J30: 10.16423817 | K30: 13.0375948 | L30: 0.008876050822 | M30: 35.49285486 | N30: 12.9624052 | O30: 1.173879253 | P30: 10.16127966 | Q30: 0.2220912144
C31: 725 | D31: 4 | E31: 2.200000048 | F31: 2.520250559 | G31: 2.544613361 | H31: 0.9904257351 | I31: 9.118197878 | J31: 16.11819788 | K31: 15.46990681 | L31: 0.01039710362 | M31: 41.8207299 | N31: 10.53009319 | O31: 1.005361179 | P31: 9.157721688 | Q31: 0.2763835884
B32: 400 | C32: 725 | D32: 8 | E32: 7.300000191 | F32: 2.841204166 | G32: 3.337146521 | H32: 0.8513873002 | I32: 5.979054183 | J32: 12.97905418 | K32: 14.15037441 | L32: 0.009553325363 | M32: 38.33918044 | N32: 11.84962559 | O32: 1.104706149 | P32: 9.794168695 | Q32: 0.3084330609
C33: 725 | D33: 13 | E33: 17 | F33: 3.038626909 | G33: 3.825607061 | H33: 0.7942862036 | I33: 4.217977016 | J33: 11.21797702 | K33: 13.3362608 | L33: 0.009053460322 | M33: 36.24550179 | N33: 12.6637392 | O33: 1.157153481 | P33: 9.969936527 | Q33: 0.3316018929
C34: 725 | D34: 18 | E34: 29.79999924 | F34: 3.112426996 | G34: 4.004940987 | H34: 0.7771467811 | I34: 3.189119675 | J34: 10.18911967 | K34: 13.0314188 | L34: 0.008872401901 | M34: 35.47734163 | N34: 12.9685812 | O34: 1.17421937 | P34: 10.14765858 | Q34: 0.3361096905
C35: 860 | D35: 6 | E35: 5.599999905 | F35: 3.221368313 | G35: 3.588406801 | H35: 0.8977154741 | I35: 8.572305136 | J35: 15.57230514 | K35: 14.66688442 | L35: 0.009883143939 | M35: 39.70031628 | N35: 11.33311558 | O35: 1.067137098 | P35: 8.976642544 | Q35: 0.3745997829
B36: 600 | C36: 860 | D36: 10 | E36: 13.5 | F36: 3.508218765 | G36: 4.30249548 | H36: 0.8153916214 | I36: 6.166910187 | J36: 13.16691019 | K36: 13.67100906 | L36: 0.009256096557 | M36: 37.09888489 | N36: 12.32899094 | O36: 1.136978072 | P36: 9.418457323 | Q36: 0.4017802269
C37: 860 | D37: 15 | E37: 27.20000076 | F37: 3.701240063 | G37: 4.77347374 | H37: 0.775376647 | I37: 4.561319351 | J37: 11.56131935 | K37: 12.99916458 | L37: 0.008853447624 | M37: 35.39658982 | N37: 13.00083542 | O37: 1.176016721 | P37: 9.609025372 | Q37: 0.4224173045
C38: 860 | D38: 20 | E38: 44.70000076 | F38: 3.789042234 | G38: 4.984434605 | H38: 0.7601749316 | I38: 3.572178133 | J38: 10.57217813 | K38: 12.69311619 | L38: 0.00867527537 | M38: 34.63470522 | N38: 13.30688381 | O38: 1.191720494 | P38: 9.764832771 | Q38: 0.4283282162
C39: 1360 | D39: 8 | E39: 5.400000095 | F39: 4.850741863 | G39: 5.06329298 | H39: 0.9580211697 | I39: 9.071733256 | J39: 16.07173326 | K39: 15.20016479 | L39: 0.01023433264 | M39: 41.1332457 | N39: 10.79983521 | O39: 1.024921068 | P39: 9.036693555 | Q39: 0.54667987
B40: 800 | C40: 1360 | D40: 14 | E40: 14.10000038 | F40: 5.31692791 | G40: 6.228656769 | H40: 0.853623519 | I40: 6.37695812 | J40: 13.37695812 | K40: 14.1784296 | L40: 0.009571004659 | M40: 38.41250299 | N40: 11.8215704 | O40: 1.102790182 | P40: 9.645987496 | Q40: 0.5855376349
C41: 1360 | D41: 20 | E41: 26.20000076 | F41: 5.572292805 | G41: 6.863029957 | H41: 0.8119289643 | I41: 4.918504802 | J41: 11.9185048 | K41: 13.61732769 | L41: 0.00922331214 | M41: 36.96128585 | N41: 12.38267231 | O41: 1.140224613 | P41: 9.884090046 | Q41: 0.6089600327
C42: 1360 | D42: 26 | E42: 41.20000076 | F42: 5.704774857 | G42: 7.187821865 | H42: 0.7936722645 | I42: 3.962517182 | J42: 10.96251718 | K42: 13.32585049 | L42: 0.009047222324 | M42: 36.21912611 | N42: 12.67414951 | O42: 1.157754234 | P42: 10.06076655 | Q42: 0.617091914
C43: 1690 | D43: 12 | E43: 12.10000038 | F43: 6.276301384 | G43: 6.910435677 | H43: 0.9082352659 | I43: 8.254131503 | J43: 15.2541315 | K43: 14.76222801 | L43: 0.009945138358 | M43: 39.95444815 | N43: 11.23777199 | O43: 1.059228201 | P43: 9.173320908 | Q43: 0.7111960033
B44: 1200 | C44: 1690 | D44: 18 | E44: 24.39999962 | F44: 6.675409794 | G44: 7.911306381 | H44: 0.8437809727 | I44: 6.29974397 | J44: 13.29974397 | K44: 14.05766487 | L44: 0.009495178238 | M44: 38.0975917 | N44: 11.94233513 | O44: 1.111301025 | P44: 9.604281155 | Q44: 0.7412276712
C45: 1690 | D45: 24 | E45: 40.20000076 | F45: 6.918972015 | G45: 8.515108109 | H45: 0.812552457 | I45: 5.085411787 | J45: 12.08541179 | K45: 13.62692165 | L45: 0.009229174815 | M45: 36.98588505 | N45: 12.37307835 | O45: 1.139638193 | P45: 9.824335396 | Q45: 0.7605363745
C46: 1690 | D46: 30 | E46: 59.09999847 | F46: 7.064491272 | G46: 8.87211895 | H46: 0.7962575019 | I46: 4.238901276 | J46: 11.23890128 | K46: 13.36929798 | L46: 0.009073281661 | M46: 36.32926363 | N46: 12.63070202 | O46: 1.15522982 | P46: 9.984224682 | Q46: 0.7692094649
